[Event "January 2 Early 2024"]
[Site "https://www.chess.com"]
[Date "2024.01.02"]
[Round "6"]
[White "Sztokbant, Bernardo Vainzoff"]
[Black "Sailer, Mike"]
[Result "1-0"]
[Board "158"]
[TimeControl "180+1"]
[WhiteFideId "2115956"]
[BlackFideId "2012901"]
[WhiteElo "2427"]
[BlackElo "2205"]
[WhiteTeam "BRA"]
[BlackTeam "USA"]
[WhiteClock "0:01:15"]
[BlackClock "0:00:48"]

1. e4 {[%clk 0:02:36]}  d5 {[%clk 0:02:56]} 2. exd5 {[%clk 0:02:36]}  Qxd5 {[%clk 0:02:51]} 3. Nc3 {[%clk 0:02:37]}  Qd6 {[%clk 0:02:51]} 4. d4 {[%clk 0:02:38]}  c6 {[%clk 0:02:50]} 5. Nf3 {[%clk 0:02:38]}  Bg4 {[%clk 0:02:49]} 6. h3 {[%clk 0:02:37]}  Bh5 {[%clk 0:02:50]} 7. Be2 {[%clk 0:02:36]}  Nf6 {[%clk 0:02:49]} 8. O-O {[%clk 0:02:37]}  e6 {[%clk 0:02:49]} 9. Ne5 {[%clk 0:02:36]}  Bxe2 {[%clk 0:02:48]} 10. Nxe2 {[%clk 0:02:35]}  Qc7 {[%clk 0:02:44]} 11. Bf4 {[%clk 0:02:33]}  Bd6 {[%clk 0:02:44]} 12. c4 {[%clk 0:02:32]}  c5 {[%clk 0:01:55]} 13. Qa4+ {[%clk 0:02:19]}  Kf8 {[%clk 0:01:39]} 14. Rad1 {[%clk 0:02:03]}  h6 {[%clk 0:01:35]} 15. dxc5 {[%clk 0:01:58]}  Bxe5 {[%clk 0:01:16]} 16. Bxe5 {[%clk 0:01:59]}  Qc8 {[%clk 0:01:07]} 17. Nd4 {[%clk 0:01:39]}  Nc6 {[%clk 0:01:06]} 18. Nxc6 {[%clk 0:01:38]}  Qxc6 {[%clk 0:01:02]} 19. Qxc6 {[%clk 0:01:37]}  bxc6 {[%clk 0:01:03]} 20. Rd6 {[%clk 0:01:35]}  Rc8 {[%clk 0:01:02]} 21. Rfd1 {[%clk 0:01:30]}  Ke7 {[%clk 0:01:03]} 22. Bxf6+ {[%clk 0:01:31]}  gxf6 {[%clk 0:01:03]} 23. Rd7+ {[%clk 0:01:31]}  Kf8 {[%clk 0:01:03]} 24. Rxa7 {[%clk 0:01:26]}  Kg7 {[%clk 0:01:03]} 25. Rdd7 {[%clk 0:01:26]}  Rhf8 {[%clk 0:01:03]} 26. b4 {[%clk 0:01:21]}  Rb8 {[%clk 0:00:54]} 27. a3 {[%clk 0:01:19]}  f5 {[%clk 0:00:54]} 28. Rd6 {[%clk 0:01:16]}  Rbc8 {[%clk 0:00:48]} 29. Rxe6 {[%clk 0:01:15]} 1-0

[Event "January 2 Early 2024"]
[Site "https://www.chess.com"]
[Date "2024.01.02"]
[Round "6"]
[White "Gopal, K.N."]
[Black "Omariev, Maksim"]
[Result "1-0"]
[Board "160"]
[TimeControl "180+1"]
[WhiteFideId "5001447"]
[BlackFideId "4193423"]
[WhiteElo "2169"]
[BlackElo "2420"]
[WhiteTeam "IND"]
[BlackTeam "RUS"]
[WhiteClock "0:00:12"]
[BlackClock "0:00:00"]

1. e4 {[%clk 0:02:58]}  c5 {[%clk 0:02:49]} 2. Nf3 {[%clk 0:02:55]}  d6 {[%clk 0:02:50]} 3. d4 {[%clk 0:02:53]}  cxd4 {[%clk 0:02:51]} 4. Nxd4 {[%clk 0:02:53]}  Nf6 {[%clk 0:02:51]} 5. Nc3 {[%clk 0:02:52]}  a6 {[%clk 0:02:52]} 6. a4 {[%clk 0:02:49]}  e6 {[%clk 0:02:51]} 7. Be2 {[%clk 0:02:48]}  Be7 {[%clk 0:02:51]} 8. O-O {[%clk 0:02:46]}  O-O {[%clk 0:02:51]} 9. Be3 {[%clk 0:02:46]}  Qc7 {[%clk 0:02:52]} 10. Kh1 {[%clk 0:02:45]}  Nc6 {[%clk 0:02:52]} 11. f4 {[%clk 0:02:45]}  Nxd4 {[%clk 0:02:49]} 12. Bxd4 {[%clk 0:02:44]}  e5 {[%clk 0:02:50]} 13. Be3 {[%clk 0:02:43]}  exf4 {[%clk 0:02:51]} 14. Bxf4 {[%clk 0:02:43]}  Be6 {[%clk 0:02:52]} 15. Bd3 {[%clk 0:02:37]}  Rfe8 {[%clk 0:02:52]} 16. Qf3 {[%clk 0:02:27]}  Bf8 {[%clk 0:02:47]} 17. Rae1 {[%clk 0:02:25]}  Nd7 {[%clk 0:02:39]} 18. Nd5 {[%clk 0:02:11]}  Bxd5 {[%clk 0:02:37]} 19. exd5 {[%clk 0:02:11]}  Nc5 {[%clk 0:02:38]} 20. b3 {[%clk 0:01:51]}  g6 {[%clk 0:02:20]} 21. h3 {[%clk 0:01:47]}  Bg7 {[%clk 0:02:17]} 22. Qg3 {[%clk 0:01:43]}  Qd7 {[%clk 0:01:42]} 23. Kh2 {[%clk 0:01:01]}  Rac8 {[%clk 0:01:33]} 24. Kh1 {[%clk 0:00:53]}  Nxd3 {[%clk 0:01:28]} 25. Rxe8+ {[%clk 0:00:47]}  Qxe8 {[%clk 0:01:25]} 26. Qxd3 {[%clk 0:00:47]}  Rc3 {[%clk 0:01:24]} 27. Qd2 {[%clk 0:00:43]}  Qd7 {[%clk 0:01:08]} 28. Bh6 {[%clk 0:00:42]}  Be5 {[%clk 0:01:05]} 29. Re1 {[%clk 0:00:39]}  Qf5 {[%clk 0:01:01]} 30. Qxc3 {[%clk 0:00:39]}  g5 {[%clk 0:00:01]} 31. Qd2 {[%clk 0:00:20]}  f6 {[%clk 0:00:01]} 32. Qd3 {[%clk 0:00:13]}  Qxd3 {[%clk 0:00:01]} 33. cxd3 {[%clk 0:00:13]}  Kf7 {[%clk 0:00:00]} 34. g4 {[%clk 0:00:12]} 1-0

[Event "January 2 Early 2024"]
[Site "https://www.chess.com"]
[Date "2024.01.02"]
[Round "6"]
[White "th3d4rkness"]
[Black "Rees, Ioan"]
[Result "0-1"]
[Board "161"]
[TimeControl "180+1"]
[BlackFideId "1801236"]
[WhiteElo "2144"]
[BlackElo "2417"]
[BlackTeam "WLS"]
[WhiteClock "0:00:23"]
[BlackClock "0:00:53"]

1. d4 {[%clk 0:03:00]}  d5 {[%clk 0:02:59]} 2. c4 {[%clk 0:02:59]}  c6 {[%clk 0:02:59]} 3. Nf3 {[%clk 0:02:58]}  Nf6 {[%clk 0:03:00]} 4. cxd5 {[%clk 0:02:56]}  cxd5 {[%clk 0:03:01]} 5. Nc3 {[%clk 0:02:57]}  Nc6 {[%clk 0:03:01]} 6. Bf4 {[%clk 0:02:56]}  Nh5 {[%clk 0:03:01]} 7. Bd2 {[%clk 0:02:48]}  e6 {[%clk 0:03:01]} 8. e3 {[%clk 0:02:48]}  Be7 {[%clk 0:02:59]} 9. Ne5 {[%clk 0:02:46]}  Nf6 {[%clk 0:02:58]} 10. Bb5 {[%clk 0:02:46]}  Bd7 {[%clk 0:02:57]} 11. Nxd7 {[%clk 0:02:42]}  Nxd7 {[%clk 0:02:57]} 12. O-O {[%clk 0:02:41]}  O-O {[%clk 0:02:57]} 13. a3 {[%clk 0:02:40]}  Rc8 {[%clk 0:02:57]} 14. Bd3 {[%clk 0:02:36]}  f5 {[%clk 0:02:51]} 15. Rc1 {[%clk 0:02:24]}  Bd6 {[%clk 0:02:49]} 16. f4 {[%clk 0:02:18]}  Nf6 {[%clk 0:02:47]} 17. Nb5 {[%clk 0:02:07]}  Bb8 {[%clk 0:02:47]} 18. Be1 {[%clk 0:01:56]}  Ne4 {[%clk 0:02:42]} 19. Bxe4 {[%clk 0:01:53]}  dxe4 {[%clk 0:02:42]} 20. Qh5 {[%clk 0:01:48]}  g6 {[%clk 0:02:34]} 21. Qh6 {[%clk 0:01:43]}  a6 {[%clk 0:02:26]} 22. Bh4 {[%clk 0:01:40]}  Qd7 {[%clk 0:02:23]} 23. Nc3 {[%clk 0:01:35]}  Bd6 {[%clk 0:02:19]} 24. Rfd1 {[%clk 0:01:18]}  Ne7 {[%clk 0:02:07]} 25. Bxe7 {[%clk 0:01:15]}  Qxe7 {[%clk 0:02:08]} 26. d5 {[%clk 0:01:13]}  e5 {[%clk 0:02:07]} 27. Ne2 {[%clk 0:01:04]}  Qg7 {[%clk 0:01:55]} 28. Qxg7+ {[%clk 0:00:59]}  Kxg7 {[%clk 0:01:55]} 29. g3 {[%clk 0:00:55]}  Kf6 {[%clk 0:01:48]} 30. Rxc8 {[%clk 0:00:51]}  Rxc8 {[%clk 0:01:47]} 31. Rc1 {[%clk 0:00:50]}  Rc5 {[%clk 0:01:31]} 32. b4 {[%clk 0:00:45]}  Rc7 {[%clk 0:01:27]} 33. Kf2 {[%clk 0:00:43]}  exf4 {[%clk 0:01:20]} 34. gxf4 {[%clk 0:00:39]}  g5 {[%clk 0:01:11]} 35. fxg5+ {[%clk 0:00:37]}  Kxg5 {[%clk 0:01:12]} 36. Rxc7 {[%clk 0:00:35]}  Bxc7 {[%clk 0:01:12]} 37. Nd4 {[%clk 0:00:35]}  Bxh2 {[%clk 0:01:10]} 38. Ne6+ {[%clk 0:00:33]}  Kf6 {[%clk 0:01:09]} 39. Nc5 {[%clk 0:00:33]}  h5 {[%clk 0:00:55]} 40. Nxb7 {[%clk 0:00:32]}  h4 {[%clk 0:00:55]} 41. Nc5 {[%clk 0:00:31]}  Ke5 {[%clk 0:00:54]} 42. Nxa6 {[%clk 0:00:29]}  Kxd5 {[%clk 0:00:55]} 43. Nc7+ {[%clk 0:00:23]}  Bxc7 {[%clk 0:00:53]} 0-1

[Event "January 2 Early 2024"]
[Site "https://www.chess.com"]
[Date "2024.01.02"]
[Round "6"]
[White "Povshednyi, Ivan"]
[Black "Gomez Falagan, Daniel"]
[Result "0-1"]
[Board "163"]
[TimeControl "180+1"]
[WhiteFideId "14190907"]
[BlackFideId "54509947"]
[WhiteElo "2597"]
[BlackElo "2348"]
[WhiteTeam "UKR"]
[BlackTeam "ESP"]
[WhiteClock "0:00:51"]
[BlackClock "0:00:10"]

1. e4 {[%clk 0:03:00]}  c6 {[%clk 0:03:00]} 2. d4 {[%clk 0:03:00]}  d5 {[%clk 0:03:00]} 3. e5 {[%clk 0:03:00]}  c5 {[%clk 0:03:01]} 4. Nf3 {[%clk 0:03:00]}  Nc6 {[%clk 0:03:01]} 5. dxc5 {[%clk 0:02:59]}  e6 {[%clk 0:02:59]} 6. Be3 {[%clk 0:02:58]}  Nge7 {[%clk 0:02:59]} 7. c3 {[%clk 0:02:58]}  Nf5 {[%clk 0:02:57]} 8. Bd4 {[%clk 0:02:59]}  Be7 {[%clk 0:02:56]} 9. Bd3 {[%clk 0:02:55]}  Nfxd4 {[%clk 0:02:55]} 10. cxd4 {[%clk 0:02:56]}  b6 {[%clk 0:02:56]} 11. Bb5 {[%clk 0:02:49]}  Bd7 {[%clk 0:02:54]} 12. Bxc6 {[%clk 0:02:41]}  Bxc6 {[%clk 0:02:55]} 13. b4 {[%clk 0:02:42]}  a5 {[%clk 0:02:52]} 14. Nbd2 {[%clk 0:02:33]}  axb4 {[%clk 0:02:51]} 15. cxb6 {[%clk 0:02:34]}  Qxb6 {[%clk 0:02:51]} 16. O-O {[%clk 0:02:35]}  O-O {[%clk 0:02:51]} 17. h3 {[%clk 0:02:25]}  Rfc8 {[%clk 0:02:41]} 18. Qb3 {[%clk 0:02:24]}  Ba4 {[%clk 0:02:40]} 19. Qb1 {[%clk 0:02:25]}  Bc2 {[%clk 0:02:34]} 20. Qb2 {[%clk 0:02:23]}  Bd3 {[%clk 0:02:34]} 21. Rfc1 {[%clk 0:02:21]}  Qa6 {[%clk 0:02:23]} 22. Nb3 {[%clk 0:02:16]}  Rxc1+ {[%clk 0:02:17]} 23. Nxc1 {[%clk 0:02:17]}  Bc4 {[%clk 0:02:10]} 24. Nb3 {[%clk 0:02:12]}  h6 {[%clk 0:02:08]} 25. Nbd2 {[%clk 0:02:08]}  Bd3 {[%clk 0:01:41]} 26. Nb3 {[%clk 0:02:05]}  Qa3 {[%clk 0:01:41]} 27. Qxa3 {[%clk 0:02:05]}  Rxa3 {[%clk 0:01:42]} 28. Nfd2 {[%clk 0:02:04]}  Bd8 {[%clk 0:01:33]} 29. f4 {[%clk 0:02:01]}  Bb6 {[%clk 0:01:32]} 30. Kf2 {[%clk 0:02:01]}  Bc4 {[%clk 0:01:25]} 31. Ke3 {[%clk 0:01:57]}  f6 {[%clk 0:01:18]} 32. g4 {[%clk 0:01:50]}  Kf7 {[%clk 0:01:15]} 33. h4 {[%clk 0:01:45]}  g5 {[%clk 0:01:03]} 34. hxg5 {[%clk 0:01:34]}  hxg5 {[%clk 0:01:03]} 35. exf6 {[%clk 0:01:27]}  Kxf6 {[%clk 0:00:49]} 36. fxg5+ {[%clk 0:01:16]}  Kxg5 {[%clk 0:00:48]} 37. Nf3+ {[%clk 0:01:07]}  Kxg4 {[%clk 0:00:40]} 38. Rg1+ {[%clk 0:01:07]}  Kf5 {[%clk 0:00:39]} 39. Rg5+ {[%clk 0:01:04]}  Kf6 {[%clk 0:00:39]} 40. Kf4 {[%clk 0:01:05]}  Rxa2 {[%clk 0:00:28]} 41. Nc5 {[%clk 0:01:01]}  Bc7+ {[%clk 0:00:26]} 42. Ne5 {[%clk 0:00:57]}  Rf2+ {[%clk 0:00:18]} 43. Ke3 {[%clk 0:00:58]}  Re2+ {[%clk 0:00:18]} 44. Kf4 {[%clk 0:00:59]}  Bxe5+ {[%clk 0:00:13]} 45. dxe5+ {[%clk 0:01:00]}  Ke7 {[%clk 0:00:13]} 46. Rg7+ {[%clk 0:01:00]}  Ke8 {[%clk 0:00:12]} 47. Nxe6 {[%clk 0:00:58]}  b3 {[%clk 0:00:13]} 48. Rb7 {[%clk 0:00:58]}  b2 {[%clk 0:00:13]} 49. Kf5 {[%clk 0:00:47]}  b1=Q+ {[%clk 0:00:12]} 50. Rxb1 {[%clk 0:00:47]}  Bd3+ {[%clk 0:00:12]} 51. Kf6 {[%clk 0:00:48]}  Bxb1 {[%clk 0:00:13]} 52. Ng7+ {[%clk 0:00:49]}  Kd8 {[%clk 0:00:12]} 53. e6 {[%clk 0:00:50]}  d4 {[%clk 0:00:09]} 54. Nf5 {[%clk 0:00:49]}  Bxf5 {[%clk 0:00:08]} 55. Kxf5 {[%clk 0:00:49]}  d3 {[%clk 0:00:09]} 56. e7+ {[%clk 0:00:50]}  Kxe7 {[%clk 0:00:09]} 57. Kf4 {[%clk 0:00:51]}  d2 {[%clk 0:00:10]} 0-1

[Event "January 2 Early 2024"]
[Site "https://www.chess.com"]
[Date "2024.01.02"]
[Round "6"]
[White "Korol, Dimitry"]
[Black "Ljukin, Sergei"]
[Result "0-1"]
[Board "165"]
[TimeControl "180+1"]
[WhiteFideId "14108003"]
[BlackFideId "14102200"]
[WhiteElo "2320"]
[BlackElo "2514"]
[WhiteTeam "UKR"]
[BlackTeam "UKR"]
[WhiteClock "0:00:15"]
[BlackClock "0:00:06"]

1. d4 {[%clk 0:03:00]}  d5 {[%clk 0:02:59]} 2. c4 {[%clk 0:03:01]}  c6 {[%clk 0:02:59]} 3. Nc3 {[%clk 0:03:01]}  Nf6 {[%clk 0:03:00]} 4. e3 {[%clk 0:03:02]}  e6 {[%clk 0:03:00]} 5. Nf3 {[%clk 0:03:02]}  Nbd7 {[%clk 0:03:00]} 6. Bd3 {[%clk 0:03:02]}  dxc4 {[%clk 0:03:01]} 7. Bxc4 {[%clk 0:03:03]}  b5 {[%clk 0:03:01]} 8. Be2 {[%clk 0:03:03]}  a6 {[%clk 0:03:02]} 9. e4 {[%clk 0:03:04]}  c5 {[%clk 0:03:00]} 10. e5 {[%clk 0:03:03]}  cxd4 {[%clk 0:03:00]} 11. Qxd4 {[%clk 0:03:04]}  Bc5 {[%clk 0:02:26]} 12. Qh4 {[%clk 0:03:04]}  Nd5 {[%clk 0:02:20]} 13. Qg3 {[%clk 0:03:04]}  g6 {[%clk 0:02:02]} 14. Nxd5 {[%clk 0:02:38]}  exd5 {[%clk 0:02:01]} 15. O-O {[%clk 0:02:38]}  O-O {[%clk 0:01:57]} 16. Rd1 {[%clk 0:02:27]}  Bb7 {[%clk 0:01:53]} 17. Bh6 {[%clk 0:02:01]}  Re8 {[%clk 0:01:52]} 18. Rac1 {[%clk 0:02:00]}  Bf8 {[%clk 0:01:41]} 19. Bg5 {[%clk 0:01:28]}  Qb6 {[%clk 0:01:18]} 20. h4 {[%clk 0:01:15]}  Bg7 {[%clk 0:01:00]} 21. Bf4 {[%clk 0:01:02]}  Rac8 {[%clk 0:00:40]} 22. h5 {[%clk 0:01:01]}  Rxc1 {[%clk 0:00:28]} 23. Rxc1 {[%clk 0:01:01]}  Rc8 {[%clk 0:00:28]} 24. Rd1 {[%clk 0:01:01]}  Nc5 {[%clk 0:00:22]} 25. hxg6 {[%clk 0:00:38]}  hxg6 {[%clk 0:00:19]} 26. Qh4 {[%clk 0:00:33]}  Ne6 {[%clk 0:00:19]} 27. Bh6 {[%clk 0:00:30]}  Qd8 {[%clk 0:00:13]} 28. Qh3 {[%clk 0:00:29]}  d4 {[%clk 0:00:11]} 29. Bxg7 {[%clk 0:00:22]}  Kxg7 {[%clk 0:00:11]} 30. Bd3 {[%clk 0:00:23]}  Qd5 {[%clk 0:00:10]} 31. Re1 {[%clk 0:00:22]}  Nf4 {[%clk 0:00:09]} 32. Qh4 {[%clk 0:00:20]}  Nxd3 {[%clk 0:00:08]} 33. Qf6+ {[%clk 0:00:20]}  Kg8 {[%clk 0:00:08]} 34. Rd1 {[%clk 0:00:20]}  Nc5 {[%clk 0:00:08]} 35. Rxd4 {[%clk 0:00:20]}  Qe6 {[%clk 0:00:08]} 36. Qg5 {[%clk 0:00:18]}  Bxf3 {[%clk 0:00:08]} 37. gxf3 {[%clk 0:00:17]}  Nd7 {[%clk 0:00:08]} 38. f4 {[%clk 0:00:16]}  Rc1+ {[%clk 0:00:06]} 39. Kg2 {[%clk 0:00:16]}  Qc6+ {[%clk 0:00:06]} 40. f3 {[%clk 0:00:15]}  Qc2+ {[%clk 0:00:06]} 41. Kh3 {[%clk 0:00:15]}  Rh1+ {[%clk 0:00:06]} 42. Kg4 {[%clk 0:00:15]}  Qg2# {[%clk 0:00:06]} 0-1

[Event "January 2 Early 2024"]
[Site "https://www.chess.com"]
[Date "2024.01.02"]
[Round "6"]
[White "Munoz Sanchez, Miguel"]
[Black "Morales Garcia, Sergio Joshafatt"]
[Result "0-1"]
[Board "167"]
[TimeControl "180+1"]
[WhiteFideId "3600734"]
[BlackFideId "5106249"]
[WhiteElo "2307"]
[BlackElo "2436"]
[WhiteTeam "ECU"]
[BlackTeam "MEX"]
[WhiteClock "0:00:29"]
[BlackClock "0:01:15"]

1. d4 {[%clk 0:03:00]}  d5 {[%clk 0:02:55]} 2. Nf3 {[%clk 0:02:58]}  Nf6 {[%clk 0:02:54]} 3. c4 {[%clk 0:02:59]}  c6 {[%clk 0:02:54]} 4. cxd5 {[%clk 0:02:54]}  cxd5 {[%clk 0:02:55]} 5. Nc3 {[%clk 0:02:54]}  Nc6 {[%clk 0:02:56]} 6. Bf4 {[%clk 0:02:54]}  Bf5 {[%clk 0:02:56]} 7. e3 {[%clk 0:02:53]}  e6 {[%clk 0:02:57]} 8. Be2 {[%clk 0:02:52]}  Bd6 {[%clk 0:02:53]} 9. Bxd6 {[%clk 0:02:50]}  Qxd6 {[%clk 0:02:54]} 10. O-O {[%clk 0:02:46]}  O-O {[%clk 0:02:54]} 11. Rc1 {[%clk 0:02:44]}  h6 {[%clk 0:02:53]} 12. Na4 {[%clk 0:02:39]}  Rfc8 {[%clk 0:02:49]} 13. Nd2 {[%clk 0:02:27]}  Rc7 {[%clk 0:02:46]} 14. a3 {[%clk 0:02:20]}  Rac8 {[%clk 0:02:45]} 15. Nc5 {[%clk 0:02:00]}  e5 {[%clk 0:02:11]} 16. dxe5 {[%clk 0:01:35]}  Nxe5 {[%clk 0:02:09]} 17. b4 {[%clk 0:01:35]}  b6 {[%clk 0:01:56]} 18. Ncb3 {[%clk 0:01:36]}  Bc2 {[%clk 0:01:34]} 19. Qe1 {[%clk 0:01:34]}  Nd3 {[%clk 0:01:33]} 20. Bxd3 {[%clk 0:01:25]}  Bxd3 {[%clk 0:01:34]} 21. Rxc7 {[%clk 0:01:19]}  Qxc7 {[%clk 0:01:33]} 22. Nf3 {[%clk 0:01:02]}  Bxf1 {[%clk 0:01:24]} 23. Qxf1 {[%clk 0:00:29]}  Qc4 {[%clk 0:01:15]} 0-1

[Event "January 2 Early 2024"]
[Site "https://www.chess.com"]
[Date "2024.01.02"]
[Round "6"]
[White "Alonso Garcia, Rene Marcial"]
[Black "Kamsky, Gata"]
[Result "0-1"]
[Board "172"]
[TimeControl "180+1"]
[WhiteFideId "3500276"]
[BlackFideId "2000024"]
[WhiteElo "2275"]
[BlackElo "2947"]
[WhiteTeam "FID"]
[BlackTeam "USA"]
[WhiteClock "0:00:00"]
[BlackClock "0:00:16"]

1. d4 {[%clk 0:02:54]}  f5 {[%clk 0:02:58]} 2. g3 {[%clk 0:02:52]}  Nf6 {[%clk 0:02:57]} 3. Bg2 {[%clk 0:02:51]}  g6 {[%clk 0:02:57]} 4. c3 {[%clk 0:02:50]}  Bg7 {[%clk 0:02:57]} 5. Qb3 {[%clk 0:02:50]}  Nc6 {[%clk 0:02:56]} 6. Nh3 {[%clk 0:02:49]}  e6 {[%clk 0:02:53]} 7. Nd2 {[%clk 0:02:47]}  O-O {[%clk 0:02:48]} 8. Nf4 {[%clk 0:02:47]}  g5 {[%clk 0:02:46]} 9. Nd3 {[%clk 0:02:46]}  d6 {[%clk 0:02:42]} 10. Nf3 {[%clk 0:02:40]}  h6 {[%clk 0:02:40]} 11. h4 {[%clk 0:02:33]}  g4 {[%clk 0:02:39]} 12. Nd2 {[%clk 0:02:31]}  d5 {[%clk 0:02:15]} 13. Nf4 {[%clk 0:02:29]}  Qd6 {[%clk 0:02:09]} 14. Nf1 {[%clk 0:02:24]}  Na5 {[%clk 0:02:02]} 15. Qc2 {[%clk 0:02:20]}  b6 {[%clk 0:01:58]} 16. Ne3 {[%clk 0:02:18]}  c5 {[%clk 0:01:51]} 17. dxc5 {[%clk 0:02:13]}  bxc5 {[%clk 0:01:51]} 18. O-O {[%clk 0:02:09]}  Ba6 {[%clk 0:01:43]} 19. b4 {[%clk 0:01:51]}  cxb4 {[%clk 0:01:41]} 20. cxb4 {[%clk 0:01:50]}  Rfc8 {[%clk 0:01:34]} 21. Qa4 {[%clk 0:01:45]}  Nc4 {[%clk 0:01:31]} 22. b5 {[%clk 0:01:29]}  Bb7 {[%clk 0:01:22]} 23. Nxc4 {[%clk 0:01:21]}  Rxc4 {[%clk 0:01:15]} 24. Qa3 {[%clk 0:01:21]}  Qxa3 {[%clk 0:01:10]} 25. Bxa3 {[%clk 0:01:20]}  Kf7 {[%clk 0:01:10]} 26. Bb2 {[%clk 0:01:13]}  Rc2 {[%clk 0:00:58]} 27. Be5 {[%clk 0:01:10]}  Bf8 {[%clk 0:00:51]} 28. a4 {[%clk 0:01:05]}  Nd7 {[%clk 0:00:48]} 29. Nd3 {[%clk 0:00:59]}  a6 {[%clk 0:00:48]} 30. Bf4 {[%clk 0:00:51]}  Kf6 {[%clk 0:00:42]} 31. Rfc1 {[%clk 0:00:46]}  Rac8 {[%clk 0:00:41]} 32. Rxc2 {[%clk 0:00:45]}  Rxc2 {[%clk 0:00:41]} 33. Rc1 {[%clk 0:00:45]}  Rxc1+ {[%clk 0:00:40]} 34. Bxc1 {[%clk 0:00:43]}  axb5 {[%clk 0:00:40]} 35. axb5 {[%clk 0:00:43]}  e5 {[%clk 0:00:39]} 36. Bb2 {[%clk 0:00:39]}  Ke6 {[%clk 0:00:39]} 37. f4 {[%clk 0:00:25]}  gxf3 {[%clk 0:00:36]} 38. Bxf3 {[%clk 0:00:25]}  Bd6 {[%clk 0:00:34]} 39. Bg2 {[%clk 0:00:23]}  Nb6 {[%clk 0:00:33]} 40. Bh3 {[%clk 0:00:22]}  Nc4 {[%clk 0:00:32]} 41. Bc1 {[%clk 0:00:20]}  h5 {[%clk 0:00:32]} 42. Nb2 {[%clk 0:00:17]}  Bc5+ {[%clk 0:00:31]} 43. Kh2 {[%clk 0:00:16]}  Nd6 {[%clk 0:00:28]} 44. Bg2 {[%clk 0:00:16]}  Nxb5 {[%clk 0:00:27]} 45. Bf3 {[%clk 0:00:15]}  e4 {[%clk 0:00:26]} 46. Bxh5 {[%clk 0:00:15]}  Ba3 {[%clk 0:00:23]} 47. Nd3 {[%clk 0:00:12]}  exd3 {[%clk 0:00:23]} 48. Bxa3 {[%clk 0:00:12]}  d2 {[%clk 0:00:22]} 49. e4 {[%clk 0:00:11]}  Nxa3 {[%clk 0:00:21]} 50. exf5+ {[%clk 0:00:11]}  Kxf5 {[%clk 0:00:22]} 51. g4+ {[%clk 0:00:12]}  Kf4 {[%clk 0:00:21]} 52. g5 {[%clk 0:00:13]}  Kf5 {[%clk 0:00:19]} 53. Kg3 {[%clk 0:00:11]}  Nc4 {[%clk 0:00:17]} 54. Bd1 {[%clk 0:00:10]}  Nb2 {[%clk 0:00:17]} 55. Bc2+ {[%clk 0:00:09]}  Ke6 {[%clk 0:00:17]} 56. h5 {[%clk 0:00:09]}  d1=Q {[%clk 0:00:17]} 57. Bxd1 {[%clk 0:00:08]}  Nxd1 {[%clk 0:00:18]} 58. Kf4 {[%clk 0:00:08]}  d4 {[%clk 0:00:17]} 59. h6 {[%clk 0:00:08]}  Kf7 {[%clk 0:00:17]} 60. Kf5 {[%clk 0:00:07]}  Ne3+ {[%clk 0:00:17]} 61. Kf4 {[%clk 0:00:06]}  Nc4 {[%clk 0:00:16]} 62. Kf5 {[%clk 0:00:05]}  Nd6+ {[%clk 0:00:15]} 63. Kf4 {[%clk 0:00:05]}  d3 {[%clk 0:00:15]} 64. Ke3 {[%clk 0:00:05]}  Be4 {[%clk 0:00:16]} 65. Kd2 {[%clk 0:00:05]}  Bg6 {[%clk 0:00:16]} 66. Ke3 {[%clk 0:00:05]}  Ke6 {[%clk 0:00:16]} 67. Kd2 {[%clk 0:00:00]}  Ke5 {[%clk 0:00:16]} 0-1

[Event "January 2 Early 2024"]
[Site "https://www.chess.com"]
[Date "2024.01.02"]
[Round "6"]
[White "Panchenko, Dmitry"]
[Black "Brejnik, Gustav"]
[Result "1-0"]
[Board "173"]
[TimeControl "180+1"]
[WhiteFideId "4169158"]
[BlackFideId "362662"]
[WhiteElo "2832"]
[BlackElo "2249"]
[WhiteTeam "RUS"]
[BlackTeam "CZE"]
[WhiteClock "0:01:40"]
[BlackClock "0:00:02"]

1. e4 {[%clk 0:03:00]}  a6 {[%clk 0:02:43]} 2. d4 {[%clk 0:02:42]}  c6 {[%clk 0:02:42]} 3. f3 {[%clk 0:02:43]}  d5 {[%clk 0:02:42]} 4. c3 {[%clk 0:02:44]}  dxe4 {[%clk 0:02:33]} 5. fxe4 {[%clk 0:02:37]}  e5 {[%clk 0:02:33]} 6. Nf3 {[%clk 0:02:35]}  Bg4 {[%clk 0:02:33]} 7. Bc4 {[%clk 0:02:13]}  Nd7 {[%clk 0:02:29]} 8. Qb3 {[%clk 0:02:11]}  Qe7 {[%clk 0:02:27]} 9. Qxb7 {[%clk 0:02:09]}  Rb8 {[%clk 0:02:26]} 10. Qxc6 {[%clk 0:02:09]}  Bxf3 {[%clk 0:02:21]} 11. gxf3 {[%clk 0:02:05]}  Nf6 {[%clk 0:02:08]} 12. O-O {[%clk 0:02:01]}  Nh5 {[%clk 0:01:51]} 13. Qxa6 {[%clk 0:01:55]}  Qh4 {[%clk 0:01:21]} 14. Qc6 {[%clk 0:01:49]}  Rb6 {[%clk 0:01:09]} 15. Qc8+ {[%clk 0:01:49]}  Ke7 {[%clk 0:01:08]} 16. b3 {[%clk 0:01:44]}  Rg6+ {[%clk 0:01:03]} 17. Kh1 {[%clk 0:01:43]}  Ng3+ {[%clk 0:01:03]} 18. Kg2 {[%clk 0:01:44]}  Nxe4+ {[%clk 0:00:30]} 19. Kh1 {[%clk 0:01:43]}  Nf2+ {[%clk 0:00:14]} 20. Rxf2 {[%clk 0:01:43]}  Qxf2 {[%clk 0:00:14]} 21. Ba3+ {[%clk 0:01:42]}  Kf6 {[%clk 0:00:14]} 22. Qd8+ {[%clk 0:01:42]}  Kf5 {[%clk 0:00:09]} 23. Qxd7+ {[%clk 0:01:42]}  Kg5 {[%clk 0:00:04]} 24. Qg4+ {[%clk 0:01:41]}  Kf6 {[%clk 0:00:01]} 25. dxe5+ {[%clk 0:01:41]}  Kxe5 {[%clk 0:00:02]} 26. Qe4+ {[%clk 0:01:40]}  Kf6 {[%clk 0:00:02]} 27. Qf4# {[%clk 0:01:40]} 1-0